bitfinex/quotes_BTCUSD_20250119
["timestamp","ask_amount","ask_price","bid_price","bid_amount"]
[1737254194772,0.40209411,105180.0,105170.0,0.00547722]
[1737254195098,0.40252251,105180.0,105170.0,0.00547722]
[1737254195417,0.55252251,105180.0,105170.0,0.00547722]
[1737254196381,0.63781844,105180.0,105170.0,0.00547722]
[1737254199039,0.7654493,105180.0,105170.0,0.00547722]
[1737254199194,0.86469011,105180.0,105170.0,0.00547722]
[1737254200190,0.7654493,105180.0,105170.0,0.00547722]
[1737254201009,0.93562378,105180.0,105170.0,0.00547722]
[1737254201206,0.95448781,105180.0,105170.0,0.00547722]
[1737254201851,0.78431333,105180.0,105170.0,0.00547722]
[1737254202304,0.88422576,105180.0,105170.0,0.00547722]
[1737254202519,0.98346657,105180.0,105170.0,0.00547722]
[1737254203009,0.88974576,105180.0,105170.0,0.00547722]
[1737254203234,1.03974576,105180.0,105170.0,0.00547722]
[1737254203370,1.03422576,105180.0,105170.0,0.00547722]
[1737254203711,1.20992024,105180.0,105170.0,0.00547722]
[1737254204073,1.33738345,105180.0,105170.0,0.00547722]
[1737254204274,1.33718345,105180.0,105170.0,0.00547722]
[1737254204711,1.43642426,105180.0,105170.0,0.00547722]
[1737254204936,1.33718345,105180.0,105170.0,0.00547722]
[1737254205137,1.23727102,105180.0,105170.0,0.00547722]
[1737254205280,1.33718345,105180.0,105170.0,0.00547722]
[1737254205485,1.23727102,105180.0,105170.0,0.00547722]
[1737254205685,1.23175102,105180.0,105170.0,0.00547722]
[1737254205914,1.08175102,105180.0,105170.0,0.00547722]
[1737254206078,1.08175102,105180.0,105170.0,0.08617722]
[1737254206266,1.23175102,105180.0,105170.0,0.08617722]
[1737254206473,0.78427257,105180.0,105170.0,0.08617722]
[1737254207032,0.93427257,105180.0,105170.0,0.08617722]
[1737254207236,0.65664171,105180.0,105170.0,0.08617722]
[1737254207446,0.80664171,105180.0,105170.0,0.08617722]
[1737254207646,0.80664171,105180.0,105170.0,0.00547722]
[1737254207868,0.93427257,105180.0,105170.0,0.00547722]
[1737254207992,0.93427257,105180.0,105170.0,0.01828018]
[1737254208199,1.13342581,105180.0,105170.0,0.01828018]
[1737254208387,0.93427257,105180.0,105170.0,0.01828018]
[1737254208998,1.10444705,105180.0,105170.0,0.01828018]
[1737254209606,1.10444705,105180.0,105170.0,0.00547722]
[1737254210724,1.20435948,105180.0,105170.0,0.00547722]
[1737254211541,1.33166345,105180.0,105170.0,0.00547722]
[1737254211895,1.43090426,105180.0,105170.0,0.00547722]
[1737254212255,1.33166345,105180.0,105170.0,0.00547722]
[1737254212473,1.40966345,105180.0,105170.0,0.00547722]
[1737254213120,1.40966345,105180.0,105170.0,4.2e-07]
[1737254213121,1.18275102,105180.0,105170.0,4.2e-07]
[1737254213321,0.24991243,105170.0,105160.0,0.00089964]
[1737254213475,0.65201554,105170.0,105160.0,0.00094963]
[1737254213888,0.54812639,105170.0,105160.0,0.00094963]
[1737254214183,0.65201554,105170.0,105160.0,0.00094963]
[1737254214416,0.86510064,105170.0,105160.0,0.00094963]
[1737254214855,1.16258002,105170.0,105160.0,0.00094963]
[1737254216115,1.31258002,105170.0,105160.0,0.00094963]
[1737254216310,1.3472599,105170.0,105160.0,0.00094963]
[1737254216516,1.3702599,105170.0,105160.0,0.00094963]
[1737254216973,1.29420323,105170.0,105160.0,0.00094963]
[1737254217146,1.42570323,105170.0,105160.0,0.00094963]
[1737254217676,1.30359237,105170.0,105160.0,0.00094963]
[1737254219120,1.20367994,105170.0,105160.0,0.00094963]
[1737254220107,1.07535551,105170.0,105160.0,0.00094963]
[1737254220490,0.173,105160.0,105150.0,2.7e-07]
[1737254220722,0.34501443,105150.0,105140.0,0.00089901]
[1737254220923,0.54814439,105150.0,105140.0,0.00094904]
[1737254221102,0.65203354,105150.0,105140.0,0.00094904]
[1737254221499,1.0364547,105150.0,105140.0,0.00094904]
[1737254221882,1.12104099,105150.0,105140.0,0.00094904]
[1737254222111,1.0364547,105150.0,105140.0,0.00094904]
[1737254222287,0.86560085,105150.0,105140.0,0.00094904]
[1737254223544,0.77120842,105150.0,105140.0,0.00094904]
[1737254223761,0.64306803,105150.0,105140.0,0.00094904]
[1737254224330,0.74298046,105150.0,105140.0,0.00094904]
[1737254224631,0.76215937,105150.0,105140.0,0.00094904]
[1737254224839,0.30359698,105150.0,105140.0,0.08164904]
[1737254225242,0.39804845,105150.0,105140.0,0.08164904]
[1737254225906,0.31262153,105150.0,105140.0,0.08164904]
[1737254226019,0.46262153,105150.0,105140.0,0.08164904]
[1737254229072,0.56186234,105150.0,105140.0,0.08164904]
[1737254229212,0.56186234,105150.0,105140.0,0.00094904]
[1737254229633,0.56229094,105150.0,105140.0,0.00094904]
[1737254230703,0.76144418,105150.0,105140.0,0.00094904]
[1737254230912,0.91144418,105150.0,105140.0,0.00094904]
[1737254232382,0.9968711,105150.0,105140.0,0.00094904]
[1737254233025,0.89763029,105150.0,105140.0,0.00094904]
[1737254236109,0.81220337,105150.0,105140.0,0.00094904]
[1737254238177,0.35451264,105150.0,105140.0,0.00094904]
[1737254238371,0.01016983,105150.0,105140.0,0.22484761]
[1737254238578,0.0004286,105150.0,105140.0,0.22484761]
[1737254238734,0.19941975,105150.0,105140.0,0.12973661]
[1737254239113,0.20015187,105150.0,105140.0,0.12973661]
[1737254239459,0.19941975,105150.0,105140.0,0.12973661]
[1737254239660,0.20015187,105150.0,105140.0,0.13271086]
[1737254240263,0.20015187,105150.0,105140.0,0.19145027]
[1737254240651,0.19941975,105150.0,105140.0,0.19145027]
[1737254242040,0.19941975,105150.0,105140.0,0.16586566]
[1737254242564,0.19941975,105150.0,105140.0,0.16086566]
[1737254244348,0.20015187,105150.0,105140.0,0.16086566]
[1737254244919,0.19941975,105150.0,105140.0,0.16086566]
[1737254245712,0.0004286,105150.0,105140.0,0.25300241]
[1737254246153,0.0004286,105150.0,105140.0,0.25597681]
[1737254246759,0.0955306,105150.0,105140.0,0.25597681]
[1737254246951,0.0004286,105150.0,105140.0,0.28147973]
[1737254248252,0.19941975,105150.0,105140.0,0.28147973]
[1737254248424,0.20015187,105150.0,105140.0,0.18636873]
[1737254249269,0.19941975,105150.0,105140.0,0.18636873]
[1737254250170,0.19941975,105150.0,105140.0,0.16086581]
[1737254251630,0.0955306,105150.0,105140.0,0.25597681]
[1737254251811,0.0004286,105150.0,105140.0,0.25597681]
[1737254252042,0.0004286,105150.0,105140.0,0.25687687]
[1737254252705,0.0955306,105150.0,105140.0,0.2821595]
[1737254252904,0.0004286,105150.0,105140.0,0.2821595]
[1737254253305,0.0955306,105150.0,105140.0,0.2821595]
[1737254255702,0.0004286,105150.0,105140.0,0.2821595]
[1737254257143,0.0004286,105150.0,105140.0,0.38140031]
[1737254258024,0.0955306,105150.0,105140.0,0.38140031]
[1737254258827,0.0004286,105150.0,105140.0,0.38140031]
[1737254259405,0.0955306,105150.0,105140.0,0.38140031]
[1737254259960,0.0004286,105150.0,105140.0,0.38140031]
[1737254260255,0.19941975,105150.0,105140.0,0.38140031]
[1737254260467,0.10431775,105150.0,105140.0,0.38140031]
[1737254260707,0.0004286,105150.0,105140.0,0.38140031]
[1737254261678,0.0004286,105150.0,105140.0,0.37842591]
[1737254262225,0.0004286,105150.0,105140.0,0.38140007]
[1737254267339,0.0004286,105150.0,105140.0,0.40176406]
[1737254278602,0.0004286,105150.0,105140.0,0.38140007]
[1737254279483,0.0004286,105150.0,105140.0,1.38140007]
[1737254283475,0.0004286,105150.0,105140.0,1.50717028]
[1737254285586,0.0004286,105150.0,105140.0,1.6748639]
[1737254286112,0.0004286,105150.0,105140.0,1.6254639]
[1737254286301,0.0004286,105150.0,105140.0,1.45777028]
[1737254288056,0.0004286,105150.0,105140.0,1.6254639]
[1737254291318,0.19941975,105150.0,105140.0,1.55021486]
[1737254291550,0.16398561,105150.0,105140.0,1.55021486]
[1737254291830,0.06888361,105150.0,105140.0,1.38252124]
[1737254292185,0.16398561,105150.0,105140.0,1.38252124]
[1737254292388,0.06888361,105150.0,105140.0,1.38252124]
[1737254292588,0.16398561,105150.0,105140.0,1.38252124]
[1737254292787,0.06888361,105150.0,105140.0,1.38252124]
[1737254293046,0.23317274,105150.0,105140.0,1.18808186]
[1737254293325,0.24358561,105150.0,105140.0,1.18808186]
[1737254293626,0.27946155,105150.0,105140.0,1.0825957]
[1737254294809,0.28915621,105150.0,105140.0,1.0825957]
[1737254295015,0.28915621,105150.0,105140.0,1.06231165]
[1737254302127,0.68772797,105150.0,105140.0,1.06231165]
[1737254302428,0.72540484,105150.0,105140.0,1.06231165]
[1737254302695,0.68772797,105150.0,105140.0,1.06231165]
[1737254303452,0.68772797,105150.0,105140.0,1.05933749]
[1737254303663,0.77315489,105150.0,105140.0,1.05933749]
[1737254304262,0.68772797,105150.0,105140.0,1.01365168]
[1737254309770,0.10522526,105150.0,105140.0,1.01365168]
[1737254309971,0.20955621,105150.0,105140.0,1.01365168]
[1737254310999,0.20955621,105150.0,105140.0,1.03388956]
[1737254311599,0.31461928,105150.0,105140.0,1.03388956]
[1737254311799,0.36168716,105150.0,105140.0,1.03686403]
[1737254312215,0.36168716,105150.0,105140.0,1.06216387]
[1737254313254,0.43748716,105150.0,105140.0,1.06216387]
[1737254313714,0.43748716,105150.0,105140.0,1.03686403]
[1737254314376,0.53672797,105150.0,105140.0,1.03686403]
[1737254314781,0.53672797,105150.0,105140.0,1.03388956]
[1737254316040,0.57477197,105150.0,105140.0,1.03388956]
[1737254318561,0.57477197,105150.0,105140.0,1.05920306]
[1737254319238,0.57477197,105150.0,105140.0,1.06217766]
[1737254320079,0.24760021,105150.0,105140.0,1.06217766]
[1737254320656,0.0955306,105150.0,105140.0,1.15737623]
[1737254320785,0.0004286,105150.0,105140.0,1.15737623]
[1737254320993,0.0955306,105150.0,105140.0,1.17766028]
[1737254321227,0.19986155,105150.0,105140.0,1.17766028]
[1737254322427,0.20059367,105150.0,105140.0,1.17766028]
[1737254323077,0.20059367,105150.0,105140.0,1.08254928]
[1737254324649,0.20059367,105150.0,105140.0,1.08246171]
[1737254324876,0.20059367,105150.0,105140.0,1.17757271]
[1737254325280,0.20059367,105150.0,105140.0,1.08246171]
[1737254325476,0.20059367,105150.0,105140.0,1.17757271]
[1737254325714,0.20059367,105150.0,105140.0,1.08246171]
[1737254327947,0.40416543,105150.0,105140.0,1.08246171]
[1737254328163,0.67413331,105150.0,105140.0,1.08246171]
[1737254329685,0.67413331,105150.0,105140.0,1.07948711]
[1737254329876,0.67413331,105150.0,105140.0,1.05920306]
[1737254330507,0.46547141,105150.0,105140.0,1.05920306]
[1737254330713,0.67413331,105150.0,105140.0,1.05920306]
[1737254332129,0.0955306,105150.0,105140.0,1.15440163]
[1737254332285,0.0004286,105150.0,105140.0,1.22940163]
[1737254332691,0.0004286,105150.0,105140.0,1.25265999]
[1737254333357,0.0004286,105150.0,105140.0,1.3519008]
[1737254334209,0.0004286,105150.0,105140.0,1.33161675]
[1737254335867,0.0004286,105150.0,105140.0,1.7853477]
[1737254336073,0.0004286,105150.0,105140.0,1.8083477]
[1737254336977,0.0004284,105180.0,105170.0,0.09517157]
[1737254337716,0.0004284,105180.0,105170.0,0.19833747]
[1737254338482,0.0004284,105180.0,105170.0,0.27684686]
[1737254338683,0.0004284,105180.0,105170.0,0.27589608]
[1737254338883,0.0004284,105180.0,105170.0,0.27292177]
[1737254340771,0.19983435,105180.0,105170.0,0.17368096]
[1737254341164,0.20056647,105180.0,105170.0,0.07850939]
[1737254341367,0.19983435,105180.0,105170.0,0.07850939]
[1737254341567,0.0955034,105180.0,105170.0,0.07850939]
[1737254341869,0.0955034,105180.0,105170.0,0.17368096]
[1737254342278,0.0955034,105180.0,105170.0,0.09517157]
[1737254342438,0.0004284,105180.0,105170.0,0.09612232]
[1737254342838,0.0004284,105180.0,105170.0,0.15418316]
[1737254350138,0.0955034,105180.0,105170.0,0.15418316]
[1737254351329,0.0004284,105180.0,105170.0,0.15418316]
[1737254351922,0.0955034,105180.0,105170.0,0.15418316]
[1737254353785,0.0955034,105180.0,105170.0,0.15323241]
[1737254354193,0.0955034,105180.0,105170.0,0.15418312]
[1737254354566,0.0955034,105180.0,105170.0,0.15323241]
[1737254355310,0.10516678,105180.0,105170.0,0.15323241]
[1737254355538,0.10516678,105180.0,105170.0,0.05814841]
[1737254356100,0.21022985,105180.0,105170.0,0.05806084]
[1737254356731,0.21022985,105180.0,105170.0,0.03281642]
[1737254358668,0.20949773,105180.0,105170.0,0.03281642]
[1737254358855,0.10516678,105180.0,105170.0,0.03290399]
[1737254359839,0.10516678,105180.0,105170.0,0.12798799]
[1737254360135,0.21022985,105180.0,105170.0,0.03281642]
[1737254360919,0.21022985,105180.0,105170.0,0.05806052]
[1737254361547,0.20949773,105180.0,105170.0,0.05806052]
[1737254363220,0.38587066,105180.0,105170.0,0.05806052]
[1737254363424,0.38513854,105180.0,105170.0,0.05806052]
[1737254366692,0.53513854,105180.0,105170.0,0.05806052]
[1737254366892,0.68776949,105180.0,105170.0,0.05806052]
[1737254367093,0.71644949,105180.0,105170.0,0.05806052]
[1737254367529,0.86644949,105180.0,105170.0,0.05806052]
[1737254367974,0.86644949,105180.0,105170.0,0.01262147]
[1737254368196,0.9656903,105180.0,105170.0,0.01262147]
[1737254368456,1.17925761,105180.0,105170.0,0.01262147]
[1737254368828,1.47825185,105180.0,105170.0,0.01262147]
[1737254369264,0.46970543,105160.0,105150.0,0.0008988]
[1737254369433,0.77760814,105160.0,105150.0,0.0008988]
[1737254370570,0.78968945,105160.0,105150.0,0.0008988]
[1737254370801,0.78968945,105160.0,105150.0,0.01353151]
[1737254371002,0.70069571,105160.0,105150.0,0.01353151]
[1737254371995,0.70069571,105160.0,105150.0,0.0008988]
[1737254372717,0.85069571,105160.0,105150.0,0.0008988]
[1737254374450,0.87958694,105160.0,105150.0,0.0008988]
[1737254379698,0.88001494,105160.0,105150.0,0.0008988]
[1737254380157,0.94751353,105160.0,105150.0,0.0008988]
[1737254381663,0.88001494,105160.0,105150.0,0.0008988]
[1737254388774,0.3798639,105150.0,105140.0,1.00090006]
[1737254388975,0.48478471,105150.0,105140.0,1.00090006]
[1737254392605,0.65778471,105150.0,105140.0,1.00090006]
[1737254392815,0.95272552,105150.0,105140.0,1.00090006]
[1737254393034,0.80272552,105150.0,105140.0,1.00090006]
[1737254393206,0.95272552,105150.0,105140.0,1.00090006]
[1737254394276,0.95272552,105150.0,105140.0,0.96285606]
[1737254394482,0.80272552,105150.0,105140.0,0.69768764]
[1737254394829,0.80272552,105150.0,105140.0,0.61207764]
[1737254395054,0.80272552,105150.0,105140.0,0.58026041]
[1737254395263,0.80272552,105150.0,105140.0,0.3979753]
[1737254395435,0.80272552,105150.0,105140.0,0.3539753]
[1737254396055,0.80272552,105150.0,105140.0,0.3349533]
[1737254396331,0.80272552,105150.0,105140.0,0.2268653]
[1737254396480,0.80272552,105150.0,105140.0,0.1696753]
[1737254397088,0.80272552,105150.0,105140.0,0.0395573]
[1737254397646,0.540629,105120.0,105110.0,0.01935435]
[1737254397879,0.93798259,105120.0,105110.0,0.01935435]
[1737254398096,0.93798259,105120.0,105110.0,0.02573244]
[1737254398549,0.93798259,105120.0,105110.0,0.03815752]
[1737254398761,0.90831461,105120.0,105110.0,0.03177943]
[1737254399284,0.90831461,105120.0,105110.0,0.03815752]
[1737254400056,0.90831461,105120.0,105110.0,0.03798169]
[1737254401345,0.85425171,105120.0,105110.0,0.03798169]
[1737254401752,0.54861319,105120.0,105110.0,0.03798169]
[1737254402639,0.65294414,105120.0,105110.0,0.03798169]
[1737254402834,0.54861319,105120.0,105110.0,0.03798169]
[1737254403036,0.65294414,105120.0,105110.0,0.03798169]
[1737254403458,0.54861319,105120.0,105110.0,0.0578405]
[1737254404247,0.65294414,105120.0,105110.0,0.0578405]
[1737254404444,0.29870076,105120.0,105110.0,0.1377405]
[1737254404853,0.095129,105120.0,105110.0,0.1377405]
[1737254405061,0.09586112,105120.0,105110.0,0.2328785]
[1737254405247,0.095129,105120.0,105110.0,0.25769338]
[1737254405448,0.095129,105120.0,105110.0,0.30269338]
[1737254405673,0.09586112,105120.0,105110.0,0.30269338]
[1737254405875,0.09586112,105120.0,105110.0,0.20755538]
[1737254406682,0.09586112,105120.0,105110.0,0.21053056]
[1737254407088,0.20019207,105120.0,105110.0,0.21053056]
[1737254409042,0.65367626,105120.0,105110.0,0.16553056]
[1737254409276,0.65294414,105120.0,105110.0,0.16553056]
[1737254409470,0.54861319,105120.0,105110.0,0.16553056]
[1737254409663,0.54861319,105120.0,105110.0,0.18572698]
[1737254410493,0.54861319,105120.0,105110.0,0.1827518]
[1737254411024,0.54861319,105120.0,105110.0,0.16255538]
[1737254413206,0.34436981,105120.0,105110.0,0.16255538]
[1737254413794,0.245129,105120.0,105110.0,0.16255538]
[1737254413998,0.245129,105120.0,105110.0,0.21053087]
[1737254414707,0.095129,105120.0,105110.0,0.30566887]
[1737254414892,0.0955571,105120.0,105110.0,0.30566887]
[1737254415545,0.0004281,105120.0,105110.0,0.32586529]
[1737254418145,0.0004281,105120.0,105110.0,0.32595286]
[1737254418481,0.0004281,105120.0,105110.0,0.30575644]
[1737254421404,0.0004281,105120.0,105110.0,0.32566822]
[1737254425286,0.0004281,105120.0,105110.0,0.67923998]
[1737254425508,0.0004281,105120.0,105110.0,0.82923998]
[1737254425759,0.0004281,105120.0,105110.0,0.8093282]
[1737254426246,0.0004281,105120.0,105110.0,0.83146209]
[1737254428816,0.0004281,105120.0,105110.0,1.10441283]
[1737254429617,0.0004281,105120.0,105110.0,1.31402985]
[1737254430472,0.0004281,105120.0,105110.0,1.18756501]
[1737254430669,0.0004281,105120.0,105110.0,1.1970288]
[1737254431306,0.0004281,105120.0,105110.0,1.32324797]
[1737254432152,0.0004281,105120.0,105110.0,1.32079523]
[1737254434417,0.0004281,105120.0,105110.0,1.11117821]
[1737254434831,0.0004281,105120.0,105110.0,1.12995382]
[1737254435794,0.10433095,105160.0,105130.0,0.15008757]
[1737254435997,0.09583612,105150.0,105140.0,0.095109]
[1737254436177,0.39037207,105150.0,105140.0,0.09874754]
[1737254436385,0.10433095,105150.0,105140.0,0.09874754]
[1737254436590,0.10506307,105150.0,105140.0,0.09874754]
[1737254436791,0.67906776,105160.0,105140.0,0.32124743]
[1737254437008,0.29867276,105160.0,105140.0,0.41644]
[1737254437204,0.48886076,105160.0,105140.0,0.511546]
[1737254438061,0.48886076,105160.0,105140.0,0.51452149]
[1737254438283,0.000428,105150.0,105140.0,0.32430549]
[1737254438642,0.00116012,105150.0,105140.0,0.32430549]
[1737254439265,0.000428,105150.0,105140.0,0.32430549]
[1737254444157,0.000428,105150.0,105140.0,0.40460549]
[1737254444332,0.000428,105150.0,105140.0,0.55460549]
[1737254445918,0.000428,105150.0,105140.0,0.6538463]
[1737254447027,0.000428,105150.0,105140.0,0.80317725]
[1737254447225,0.000428,105150.0,105140.0,0.99786494]
[1737254448135,0.000428,105150.0,105140.0,0.89353399]
[1737254448449,0.000428,105150.0,105140.0,0.87068569]
[1737254448876,0.000428,105150.0,105140.0,0.72068569]
[1737254449271,0.000428,105150.0,105140.0,0.87068569]
[1737254450232,0.000428,105150.0,105140.0,0.87158407]
[1737254457260,0.000428,105150.0,105140.0,0.97591502]
[1737254461336,0.000428,105150.0,105140.0,1.10213419]
[1737254461488,0.000428,105150.0,105140.0,1.38457036]
[1737254461690,0.000428,105150.0,105140.0,1.38677698]
[1737254461897,0.0004278,105170.0,105160.0,0.32591152]
[1737254462109,0.0004278,105170.0,105160.0,0.42515233]
[1737254462314,0.0004278,105170.0,105160.0,0.42800808]
[1737254462710,0.0004278,105170.0,105160.0,0.48510685]
[1737254465022,0.0004278,105170.0,105160.0,0.3807759]
[1737254465792,0.0004278,105170.0,105160.0,0.3903853]
[1737254468788,0.0004278,105170.0,105160.0,0.3807759]
[1737254468967,0.0004278,105170.0,105160.0,0.3333759]
[1737254469183,0.0004278,105170.0,105160.0,0.15463509]
[1737254469589,0.0004278,105170.0,105160.0,0.17451856]
[1737254470503,0.0004278,105170.0,105160.0,0.17546931]
[1737254471071,0.0004278,105170.0,105160.0,0.15558584]
[1737254471626,0.0004278,105170.0,105160.0,0.15463509]
[1737254473947,0.4110862,105180.0,105170.0,0.095084]
[1737254474344,0.2209352,105180.0,105170.0,0.09738213]
[1737254475249,0.129,105180.0,105170.0,0.09752495]
[1737254475752,0.129,105180.0,105170.0,0.15462372]
[1737254476434,0.0497,105180.0,105170.0,0.15462372]
[1737254477832,0.0783,105190.0,105180.0,0.095075]
[1737254478038,0.173366,105190.0,105180.0,0.095075]
[1737254478244,0.173366,105190.0,105180.0,0.09738626]
[1737254478716,0.173366,105190.0,105180.0,0.12967015]
[1737254478913,0.0783,105190.0,105180.0,0.13062082]
[1737254479137,0.6022374,105200.0,105180.0,0.31980815]
[1737254479381,0.6022374,105200.0,105180.0,0.50994915]
[1737254479382,0.89669435,105200.0,105180.0,0.50994915]
[1737254479611,0.70656835,105200.0,105180.0,0.50994915]
[1737254479917,0.70656835,105200.0,105180.0,0.53484217]
[1737254480259,0.61150435,105200.0,105180.0,0.34470117]
[1737254480476,0.70656935,105200.0,105180.0,0.34470117]
[1737254480842,0.27842907,105190.0,105180.0,0.05948817]
[1737254480965,0.27769695,105190.0,105180.0,0.15456317]
[1737254481168,0.173366,105190.0,105180.0,0.15456317]
[1737254484849,0.0004277,105190.0,105180.0,0.15456317]
[1737254485073,0.0004277,105190.0,105180.0,0.34470717]
[1737254485598,0.0954937,105190.0,105180.0,0.34470717]
[1737254486878,0.0004277,105190.0,105180.0,0.34470717]
[1737254487667,0.0004277,105190.0,105180.0,0.36459064]
[1737254488135,0.0004277,105190.0,105180.0,0.61383145]
[1737254488341,0.0004277,105190.0,105180.0,0.9465624]
[1737254488550,0.0004277,105190.0,105180.0,0.9917624]
[1737254488716,0.0004277,105190.0,105180.0,1.0917624]
[1737254489092,0.0004277,105190.0,105180.0,1.07187893]
[1737254489310,0.0004277,105190.0,105180.0,1.07759893]
[1737254489992,0.0004277,105190.0,105180.0,1.4145469]
[1737254490201,0.0004277,105190.0,105180.0,1.42400782]
[1737254490398,7e-07,105190.0,105180.0,2.05694302]
[1737254490599,7e-07,105190.0,105180.0,2.02771409]
[1737254490748,7e-07,105190.0,105180.0,2.22524271]
[1737254491126,7e-07,105190.0,105180.0,2.2240793]
[1737254491415,1e-07,105200.0,105190.0,1.34970322]
[1737254491548,1e-07,105200.0,105190.0,1.84868943]
[1737254491930,1e-07,105200.0,105190.0,1.85023999]
[1737254492680,1e-07,105200.0,105190.0,1.9074169]
[1737254492887,0.0004283,105220.0,105210.0,0.573447]
[1737254493085,0.0004283,105220.0,105210.0,1.18248416]
[1737254493291,0.0004283,105220.0,105210.0,1.18402229]
[1737254493990,0.0004283,105220.0,105210.0,1.18416511]
[1737254494234,0.0004283,105220.0,105210.0,1.03701107]
[1737254494466,0.0004283,105220.0,105210.0,0.8890073]
[1737254495015,0.0004283,105220.0,105210.0,1.0390073]
[1737254495428,0.0004283,105220.0,105210.0,1.05881086]
[1737254497556,0.0004283,105220.0,105210.0,0.90881086]
[1737254497757,0.0004283,105220.0,105210.0,1.42257903]
[1737254497958,0.0004283,105220.0,105210.0,1.46787903]
[1737254499358,0.0004283,105220.0,105210.0,1.36354808]
[1737254499583,0.0004283,105220.0,105210.0,1.34374452]
[1737254500588,0.0004283,105220.0,105210.0,1.31668855]
[1737254500828,0.0004283,105220.0,105210.0,1.28863825]
[1737254504760,3e-07,105220.0,105210.0,1.9645692]
[1737254504961,3e-07,105220.0,105210.0,1.9588492]
[1737254505186,3e-07,105220.0,105210.0,1.9645692]
[1737254506455,3e-07,105220.0,105210.0,2.09011941]
[1737254506980,3e-07,105220.0,105210.0,1.9645692]
[1737254510383,3e-07,105220.0,105210.0,2.09011941]
[1737254510693,3e-07,105220.0,105210.0,2.09061375]
[1737254511066,3e-07,105220.0,105210.0,2.14772375]
[1737254511281,3e-07,105220.0,105210.0,2.09061375]
[1737254511484,0.0004282,105230.0,105220.0,0.449938]
[1737254511710,0.0004282,105230.0,105220.0,0.65350976]
[1737254511908,0.0004282,105230.0,105220.0,0.65702472]
[1737254512779,0.0004282,105230.0,105220.0,0.80702472]
[1737254512985,0.0004282,105230.0,105220.0,0.86420163]
[1737254515460,0.0004282,105230.0,105220.0,0.71420163]
[1737254515683,0.0004282,105230.0,105220.0,0.86992163]
[1737254516745,0.0004282,105230.0,105220.0,0.48687068]
[1737254516917,0.0004282,105230.0,105220.0,0.40497068]
[1737254517109,0.0004282,105230.0,105220.0,0.25497068]
[1737254517738,0.0004282,105230.0,105220.0,0.50930163]
[1737254520670,0.0004282,105230.0,105220.0,0.52112066]
[1737254521272,0.0004282,105230.0,105220.0,0.41678971]
[1737254522972,0.0004282,105230.0,105220.0,0.52112066]
[1737254524861,0.0004282,105230.0,105220.0,0.25497068]
[1737254525476,0.0004282,105230.0,105220.0,0.27416091]
[1737254526999,0.32959207,105230.0,105220.0,0.06069187]
[1737254527195,0.23383095,105230.0,105220.0,0.15533932]
[1737254527394,0.32885995,105230.0,105220.0,0.15533932]
[1737254528018,0.32885995,105230.0,105220.0,0.06030132]
[1737254529033,0.32885995,105230.0,105220.0,0.15533932]
[1737254529771,0.32885995,105230.0,105220.0,0.17516806]
[1737254530235,0.1295,105230.0,105220.0,0.17516806]
[1737254530456,0.1295,105230.0,105220.0,0.17611835]
[1737254530594,0.1295,105230.0,105220.0,0.17516806]
[1737254531009,0.1295,105230.0,105220.0,0.17555861]
[1737254531226,0.1295,105230.0,105220.0,0.17516806]
[1737254532041,0.1295,105230.0,105220.0,0.17606602]
[1737254532240,0.1299276,105230.0,105220.0,0.17606602]
[1737254532481,0.32928755,105230.0,105220.0,0.17606602]
[1737254532621,0.32928755,105230.0,105220.0,0.16488349]
[1737254532825,0.32928755,105230.0,105220.0,0.16527404]
[1737254533045,0.1299276,105230.0,105220.0,0.16488349]
[1737254534633,0.2249566,105230.0,105220.0,0.06984549]
[1737254534830,0.32928755,105230.0,105220.0,0.06984549]
[1737254536178,0.42852836,105230.0,105220.0,0.06984549]
[1737254537449,0.42852836,105230.0,105220.0,0.07075005]
[1737254537647,0.42852836,105230.0,105220.0,0.04585703]
[1737254539504,0.32419741,105230.0,105220.0,0.04585703]
[1737254539716,0.42852836,105230.0,105220.0,0.04585703]
[1737254539859,0.42852836,105230.0,105220.0,0.02599822]
[1737254540524,0.57852836,105230.0,105220.0,0.02599822]
[1737254541173,0.77776917,105230.0,105220.0,0.02599822]
[1737254541391,0.67852836,105230.0,105220.0,0.01357314]
[1737254545765,0.69051821,105230.0,105220.0,0.01357314]
[1737254551109,0.48618726,105230.0,105220.0,0.01357314]
[1737254551316,0.59051821,105230.0,105220.0,0.01357314]
[1737254552868,0.69051821,105230.0,105220.0,0.01357314]
[1737254554285,0.73983488,105230.0,105220.0,0.01357314]
[1737254554667,0.99416583,105230.0,105220.0,0.01357314]
[1737254554868,0.89416583,105230.0,105220.0,0.01357314]
[1737254555301,0.78983488,105230.0,105220.0,0.01357314]
[1737254555699,0.74051821,105230.0,105220.0,0.01357314]
[1737254556536,0.84484916,105230.0,105220.0,0.01357314]
[1737254557307,0.86784916,105230.0,105220.0,0.01357314]
[1737254557638,0.86784916,105230.0,105220.0,0.00954417]
[1737254557823,1.08011678,105230.0,105220.0,0.00954417]
[1737254558020,1.17935759,105230.0,105220.0,0.00954417]
[1737254559275,1.17935759,105230.0,105220.0,0.00854417]
[1737254563029,1.18523759,105230.0,105220.0,0.00854417]
[1737254563534,1.35505169,105230.0,105220.0,0.00854417]
[1737254564879,1.08599678,105230.0,105220.0,0.00854417]
[1737254565502,1.08099678,105230.0,105220.0,0.00854417]
[1737254567565,1.08099678,105230.0,105220.0,0.00944192]
[1737254568497,1.25081088,105230.0,105220.0,0.00944192]
[1737254569014,1.25058064,105230.0,105220.0,0.00944192]
[1737254570958,1.47718203,105230.0,105220.0,0.00944192]
[1737254571291,1.32718203,105230.0,105220.0,0.00944192]
[1737254572295,1.03000736,105230.0,105220.0,0.00944192]
[1737254573168,1.07246088,105230.0,105220.0,0.00944192]
[1737254575001,0.97322007,105230.0,105220.0,0.00944192]
[1737254575637,0.416711,105230.0,105220.0,0.08484192]
[1737254575841,0.25472115,105230.0,105220.0,0.49882073]
[1737254576067,0.25472115,105230.0,105220.0,0.50247853]
[1737254576362,0.25472115,105230.0,105220.0,0.60680948]
[1737254576563,0.2865613,105240.0,105230.0,0.193429]
[1737254576740,0.08522759,105250.0,105240.0,0.09502]
[1737254577772,0.10475915,105260.0,105250.0,0.095011]
[1737254577955,0.10549127,105260.0,105250.0,0.095011]
[1737254578992,0.10554138,105260.0,105250.0,0.10729349]
[1737254579566,0.29978419,105260.0,105250.0,0.01454167]
[1737254579767,0.29905207,105260.0,105250.0,0.01454167]
[1737254580171,0.29905207,105260.0,105250.0,0.00225918]
[1737254580615,0.285045,105250.0,105230.0,0.57016761]
[1737254580973,0.48861676,105250.0,105230.0,0.38011861]
[1737254581096,0.67865176,105250.0,105230.0,0.38011861]
[1737254581290,0.20008307,105240.0,105230.0,0.38011861]
[1737254581492,0.20008307,105240.0,105230.0,0.3923843]
[1737254581719,0.10506307,105240.0,105230.0,0.3923843]
[1737254582660,0.10506307,105240.0,105230.0,0.37273169]
[1737254582806,0.20008307,105240.0,105230.0,0.29733169]
[1737254583007,0.10506307,105240.0,105230.0,0.29733169]
[1737254583208,0.10506307,105240.0,105230.0,0.29962699]
[1737254584556,0.00073212,105240.0,105230.0,0.29962699]
[1737254585317,0.67865476,105250.0,105240.0,0.09502]